bitfinex/quotes_SOLUSD_20240530
["timestamp","ask_amount","ask_price","bid_price","bid_amount"]
[1717075375511,6.81,168.03,168.02,83.6285]
[1717075375696,6.81,168.05,168.04,60.0]
[1717075377215,6.81,168.05,168.02,83.6285]
[1717075379318,6.81,168.05,168.02,60.0]
[1717075379642,4.4023,168.1,167.99,22.3149]
[1717075379643,2.2019,168.04,167.99,37.8724]
[1717075380032,6.81,168.01,167.99,37.8724]
[1717075380519,6.81,168.01,167.99,2.2024]
[1717075380939,2.2019,168.04,167.99,2.2024]
[1717075381139,2.202,168.03,167.98,62.2025]
[1717075381506,2.202,168.03,167.99,2.2024]
[1717075381714,2.2018,168.04,168.0,60.0]
[1717075381916,2.2019,168.03,167.99,2.2024]
[1717075382416,2.2019,168.04,167.99,2.2024]
[1717075382738,6.81,168.0,167.99,2.2024]
[1717075383230,6.81,168.0,167.98,62.2026]
[1717075384313,6.81,168.0,167.99,2.2025]
[1717075384513,2.2019,168.04,167.99,2.2025]
[1717075384707,2.2017,168.05,168.0,2.2023]
[1717075384920,2.2018,168.04,167.99,2.2024]
[1717075385930,11.0073,168.07,167.99,2.2024]
[1717075386130,11.0073,168.07,168.0,2.2023]
[1717075386131,2.2017,168.05,168.0,2.2023]
[1717075387049,6.81,168.02,168.0,2.2023]
[1717075387533,6.81,168.02,168.01,60.0]
[1717075387737,2.2017,168.05,168.01,60.0]
[1717075387945,6.81,168.02,168.01,60.0]
[1717075388412,2.2018,168.04,168.01,60.0]
[1717075388739,4.4029,168.07,168.01,60.0]
[1717075388740,6.81,168.02,168.01,60.0]
[1717075388908,6.81,168.02,168.01,62.2022]
[1717075389109,2.2017,168.05,168.01,62.2022]
[1717075389325,6.81,168.03,168.01,62.2022]
[1717075390011,2.2014,168.07,168.03,60.0]
[1717075390847,2.2014,168.07,168.03,62.2019]
[1717075391217,2.2014,168.07,168.03,60.0]
[1717075391540,2.2013,168.08,168.05,60.0]
[1717075392108,2.2014,168.07,168.05,60.0]
[1717075393538,2.2013,168.08,168.05,60.0]
[1717075394057,2.2015,168.07,168.05,60.0]
[1717075395361,2.2016,168.06,168.03,60.0]
[1717075395745,2.2015,168.07,168.03,60.0]
[1717075396454,2.2015,168.07,168.05,60.0]
[1717075396643,2.2015,168.07,168.02,97.872]
[1717075397156,2.2015,168.07,168.05,60.0]
[1717075397550,2.2015,168.07,168.03,2.2019]
[1717075397551,2.2015,168.07,168.03,97.8719]
[1717075397751,2.2015,168.07,168.03,95.67]
[1717075400455,2.2015,168.07,168.02,62.202]
[1717075400765,2.2015,168.07,168.04,60.0]
[1717075401838,2.2015,168.07,168.02,97.872]
[1717075402041,2.2015,168.07,168.02,104.4961]
[1717075402564,2.2014,168.08,168.04,60.0]
[1717075402766,6.81,168.05,168.04,60.0]
[1717075406565,6.81,168.05,168.02,104.4961]
[1717075412078,6.81,168.06,168.02,104.4961]
[1717075413067,2.2012,168.09,168.05,60.0]
[1717075413275,6.81,168.07,168.05,60.0]
[1717075413847,6.81,168.08,168.07,60.0]
[1717075414154,6.81,168.12,168.09,60.0]
[1717075415062,9.0108,168.12,168.09,60.0]
[1717075415674,6.81,168.12,168.09,60.0]
[1717075417477,2.2009,168.11,168.09,60.0]
[1717075417847,2.2008,168.12,168.09,60.0]
[1717075420291,2.2007,168.13,168.09,60.0]
[1717075420956,2.2008,168.12,168.09,60.0]
[1717075421150,2.2007,168.13,168.09,60.0]
[1717075421673,2.2008,168.12,168.07,62.2014]
[1717075422573,2.2007,168.13,168.1,60.0]
[1717075422766,2.2006,168.14,168.1,60.0]
[1717075423165,2.2007,168.13,168.1,60.0]
[1717075427071,2.2006,168.14,168.1,60.0]
[1717075427298,2.2006,168.13,168.1,60.0]
[1717075428867,2.2008,168.12,168.07,97.8713]
[1717075429400,2.2007,168.13,168.09,60.0]
[1717075430201,2.2008,168.12,168.09,60.0]
[1717075430886,4.4008,168.15,168.09,60.0]
[1717075431285,2.2007,168.13,168.09,60.0]
[1717075431990,2.2008,168.12,168.07,97.8713]
[1717075434564,2.2008,168.12,168.08,2.2013]
[1717075434781,2.2007,168.13,168.08,2.2013]
[1717075434992,6.81,168.1,168.08,2.2013]
[1717075436794,6.81,168.11,168.08,2.2013]
[1717075437285,2.2007,168.13,168.1,60.0]
[1717075437464,6.81,168.11,168.1,60.0]
[1717075438572,2.2006,168.13,168.1,60.0]
[1717075438910,6.81,168.11,168.1,60.0]
[1717075439595,2.2006,168.14,168.12,60.0]
[1717075439789,2.2004,168.15,168.12,60.0]
[1717075440183,2.2001,168.17,168.12,62.2007]
[1717075440689,2.2002,168.16,168.12,60.0]
[1717075444299,2.2002,168.16,168.12,95.67]
[1717075444482,2.2002,168.16,168.15,60.0]
[1717075444713,2.1992,168.24,168.18,2.1999]
[1717075445030,6.4047,168.26,168.19,60.0]
[1717075445223,2.1993,168.24,168.19,60.0]
[1717075445584,2.1993,168.23,168.19,60.0]
[1717075446303,2.1995,168.22,168.16,8.7354]
[1717075446498,6.81,168.17,168.15,60.0]
[1717075446794,6.81,168.16,168.15,60.0]
[1717075446994,13.1956,168.24,168.15,60.0]
[1717075446995,2.1998,168.2,168.15,60.0]
[1717075447180,2.2002,168.17,168.11,84.2208]
[1717075447382,2.2,168.18,168.12,62.2007]
[1717075447591,2.2,168.18,168.14,60.0]
[1717075448073,2.1999,168.19,168.14,60.0]
[1717075448974,2.1998,168.2,168.16,60.0]
[1717075449175,2.1996,168.21,168.16,60.0]
[1717075449400,33.71053971,168.31,168.16,60.0]
[1717075449401,6.5648,168.27,168.2,60.0]
[1717075449612,2.1991,168.25,168.2,60.0]
[1717075449813,6.81,168.21,168.2,60.0]
[1717075449997,6.81,168.22,168.2,60.0]
[1717075450379,2.1992,168.24,168.2,60.0]
[1717075450707,6.81,168.22,168.2,60.0]
[1717075451286,6.81,168.22,168.2,62.1997]
[1717075451478,6.81,168.22,168.2,60.0]
[1717075451899,2.1992,168.24,168.18,97.8699]
[1717075452102,6.81,168.19,168.17,2.2001]
[1717075452308,4.398,168.26,168.16,95.67]
[1717075452498,2.1993,168.23,168.17,2.2001]
[1717075452814,6.81,168.19,168.17,2.2001]
[1717075453194,6.81,168.19,168.18,60.0]
[1717075453384,6.81,168.19,168.17,2.2001]
[1717075453585,6.81,168.19,168.18,60.0]
[1717075453787,2.1994,168.23,168.19,60.0]
[1717075454092,6.81,168.2,168.18,2.2]
[1717075454287,6.81,168.19,168.18,2.2]
[1717075454623,9.0092,168.24,168.2,60.0]
[1717075454827,6.81,168.21,168.2,60.0]
[1717075455690,6.4152,168.31,168.22,60.0]
[1717075455993,6.81,168.25,168.24,60.0]
[1717075456193,2.1985,168.3,168.26,60.0]
[1717075456399,6.81,168.27,168.26,60.0]
[1717075456847,11.2065,168.32,168.26,60.0]
[1717075456848,2.1986,168.29,168.26,60.0]
[1717075456997,2.1984,168.31,168.26,60.0]
[1717075457925,2.1984,168.3,168.26,60.0]
[1717075458210,27.24,168.32,168.26,60.0]
[1717075458211,2.1983,168.31,168.26,60.0]
[1717075458823,2.1984,168.3,168.26,60.0]
[1717075459129,2.1983,168.31,168.26,60.0]
[1717075459418,2.1983,168.31,168.28,60.0]
[1717075459809,2.1983,168.31,168.3,60.0]
[1717075460121,2.1983,168.31,168.27,60.0]
[1717075460618,2.1984,168.3,168.27,60.0]
[1717075464119,2.1984,168.3,168.25,60.0]
[1717075464335,2.1986,168.29,168.25,60.0]
[1717075464824,2.1984,168.3,168.27,60.0]
[1717075465496,2.1984,168.3,168.25,60.0]
[1717075465703,4.397,168.3,168.21,62.1996]
[1717075465922,1.76483466,168.29,168.19,66.4244]
[1717075466100,6.021,168.35,168.15,404.6985]
[1717075466101,2.1993,168.24,168.21,60.0]
[1717075466367,10.9943,168.27,168.19,60.0]
[1717075466510,2.1993,168.24,168.19,62.1998]
[1717075466703,2.1993,168.24,168.19,60.0]
[1717075467015,2.1994,168.23,168.19,60.0]
[1717075468039,20.38,168.25,168.19,60.0]
[1717075468223,2.1996,168.22,168.17,95.67]
[1717075468456,2.1996,168.22,168.17,60.0]
[1717075468601,2.1996,168.21,168.17,60.0]
[1717075469115,2.1995,168.22,168.16,2.2002]
[1717075469700,4.3986,168.24,168.15,97.8703]
[1717075469924,2.1997,168.2,168.15,62.2003]
[1717075470223,2.1999,168.19,168.15,60.0]
[1717075470435,2.1999,168.19,168.14,2.2005]
[1717075470605,2.1999,168.19,168.15,60.0]
[1717075470803,2.1997,168.2,168.14,2.2005]
[1717075471139,2.1999,168.19,168.13,62.2006]
[1717075471424,2.1999,168.19,168.15,60.0]
[1717075473621,2.1996,168.21,168.18,60.0]
[1717075474823,4.3984,168.25,168.18,60.0]
[1717075475025,2.1996,168.22,168.18,60.0]
[1717075475227,2.1994,168.23,168.2,60.0]
[1717075475410,2.1992,168.24,168.2,60.0]
[1717075475832,17.5235,168.28,168.2,62.1997]
[1717075475833,4.3976,168.28,168.2,62.1997]
[1717075476011,2.1989,168.27,168.22,60.0]
[1717075476229,2.1986,168.29,168.24,60.0]
[1717075476417,2.1985,168.3,168.26,60.0]
[1717075476625,2.1986,168.29,168.26,60.0]
[1717075476866,2.1985,168.3,168.26,60.0]
[1717075477218,2.1986,168.29,168.26,60.0]
[1717075477611,2.1984,168.3,168.26,60.0]
[1717075478213,2.1984,168.3,168.28,60.0]
[1717075478413,2.1982,168.32,168.28,60.0]
[1717075478711,2.1983,168.31,168.28,60.0]
[1717075479406,2.1982,168.32,168.28,60.0]
[1717075482933,0.8289829,168.39,168.3,62.1983]
[1717075483135,4.3948,168.38,168.32,60.0]
[1717075483337,2.1977,168.36,168.32,60.0]
[1717075483635,2.1977,168.36,168.3,37.8684]
[1717075483636,2.1975,168.37,168.33,60.0]
[1717075483844,2.1976,168.36,168.33,60.0]
[1717075485126,2.1975,168.37,168.35,60.0]
[1717075485332,0.8289829,168.39,168.3,53.58]
[1717075485333,2.1974,168.38,168.33,60.0]
[1717075485838,2.1975,168.37,168.33,60.0]
[1717075486031,2.1975,168.37,168.33,95.67]
[1717075487950,3.0263829,168.39,168.33,95.67]
[1717075488154,2.1975,168.37,168.33,60.0]
[1717075488552,2.1974,168.38,168.35,60.0]
[1717075489353,2.1975,168.37,168.35,60.0]
[1717075489647,2.1974,168.38,168.35,60.0]
[1717075490721,2.1974,168.38,168.33,60.0]
[1717075490932,2.1975,168.37,168.33,60.0]
[1717075491334,2.1974,168.38,168.35,60.0]
[1717075491830,2.1975,168.37,168.35,60.0]
[1717075492437,2.1974,168.38,168.35,60.0]
[1717075493782,2.1974,168.38,168.33,60.0]
[1717075494842,2.1975,168.37,168.33,60.0]
[1717075497245,2.1974,168.38,168.33,62.198]
[1717075498957,2.1974,168.38,168.35,60.0]
[1717075500459,2.1976,168.36,168.31,62.1982]
[1717075500652,2.1976,168.36,168.33,60.0]
[1717075500862,4.3948,168.38,168.33,60.0]
[1717075500863,0.8289829,168.39,168.35,60.0]
[1717075501335,0.8289829,168.39,168.37,60.0]
[1717075501485,6.79,168.38,168.37,60.0]
[1717075501774,7.6189829,168.39,168.37,62.1975]
[1717075502131,0.8289829,168.39,168.37,62.1975]
[1717075502563,6.79,168.38,168.37,62.1975]
[1717075502767,0.8289829,168.39,168.38,8.4841]
[1717075503069,0.8289829,168.39,168.38,24.816]
[1717075504970,0.8289829,168.39,168.38,26.91933171]
[1717075505941,0.8289829,168.39,168.38,62.58933171]
[1717075506978,0.8289829,168.39,168.38,66.98413171]
[1717075508465,0.8289829,168.39,168.38,84.89413171]
[1717075509055,0.8289829,168.39,168.38,82.7908]
[1717075512057,0.8289829,168.39,168.38,44.1541]
[1717075512371,0.8289829,168.39,168.38,37.8674]
[1717075512880,0.8289829,168.39,168.38,44.1663]
[1717075513078,0.8289829,168.39,168.38,59.6915]
[1717075513685,0.8289829,168.39,168.38,64.0863]
[1717075514866,0.8289829,168.39,168.38,70.6785]
[1717075515361,0.8289829,168.39,168.38,64.0863]
[1717075517177,0.8289829,168.39,168.38,97.3781]
[1717075517696,0.8289829,168.39,168.38,486.0781]
[1717075518561,0.8289829,168.39,168.38,521.21829202]
[1717075520589,2.1959,168.5,168.46,60.0]
[1717075521584,2.1957,168.51,168.46,62.1963]
[1717075521881,2.1958,168.5,168.46,60.0]
[1717075525184,2.1959,168.49,168.46,60.0]
[1717075525680,17.1707,168.53,168.46,60.0]
[1717075525863,2.1959,168.5,168.46,60.0]
[1717075526060,2.1959,168.5,168.46,62.1963]
[1717075526256,10.5843,168.53,168.46,62.1963]
[1717075526257,6.78,168.49,168.46,62.1963]
[1717075527369,2.1961,168.48,168.44,62.1965]
[1717075527579,2.1958,168.5,168.44,62.1965]
[1717075527890,6.78,168.48,168.46,60.0]
[1717075528070,2.196,168.49,168.46,60.0]
[1717075528271,6.78,168.48,168.46,60.0]
[1717075528585,1.99,168.55,168.47,62.1961]
[1717075528762,6.78,168.5,168.49,60.0]
[1717075528965,2.1956,168.52,168.49,60.0]
[1717075529167,6.78,168.51,168.49,60.0]
[1717075529665,6.78,168.51,168.47,2.1961]
[1717075529857,6.78,168.5,168.46,62.1963]
[1717075529976,6.78,168.5,168.48,60.0]
[1717075530874,6.78,168.5,168.48,97.866]
[1717075531089,2.1953,168.54,168.5,60.0]
[1717075531271,1.99,168.55,168.45,35.67]
[1717075531272,6.5665,168.52,168.45,35.67]
[1717075531465,6.5665,168.52,168.46,60.0]
[1717075531713,6.78,168.49,168.48,60.0]
[1717075532095,6.78,168.51,168.5,60.0]
[1717075532291,2.1953,168.54,168.5,60.0]
[1717075532498,1.99,168.55,168.5,62.1958]
[1717075532499,6.78,168.52,168.5,62.1958]
[1717075532799,6.78,168.51,168.5,60.0]
[1717075536395,4.1852,168.55,168.52,60.0]
[1717075536600,4.1852,168.55,168.46,28.8915]
[1717075536601,1.99,168.55,168.54,60.0]
[1717075536937,8.77,168.55,168.54,60.0]
[1717075537483,1.99,168.55,168.54,60.0]
[1717075538881,1.99,168.55,168.54,95.67]
[1717075539104,1.99,168.55,168.54,97.8653]
[1717075540085,8.77,168.55,168.54,97.8653]
[1717075540286,1.99,168.55,168.54,97.8653]
[1717075541309,1.99,168.55,168.54,60.0]
[1717075544717,1.99,168.55,168.54,97.8653]
[1717075545805,8.77,168.55,168.54,95.67]
[1717075546328,8.77,168.55,168.54,60.0]
[1717075546839,1.99,168.55,168.54,119.5506]
[1717075547007,1.99,168.55,168.54,157.2183]
[1717075547212,1.99,168.55,168.54,150.6324]
[1717075547454,1.99,168.55,168.54,119.5506]
[1717075547814,1.99,168.55,168.54,137.4606]
[1717075548224,1.99,168.55,168.54,148.4371]
[1717075548406,0.8289829,168.56,168.55,82.0206]
[1717075548619,0.8289829,168.56,168.55,88.8006]
[1717075548811,0.8289829,168.56,168.55,104.1668]
[1717075549312,0.8289829,168.56,168.55,117.6216]
[1717075549505,0.8289829,168.56,168.55,138.7011]
[1717075550002,0.8289829,168.56,168.55,169.8714]
[1717075550400,0.8289829,168.56,168.55,176.4569]
[1717075550606,0.8289829,168.56,168.55,185.2376]
[1717075550901,0.8289829,168.56,168.55,573.9376]
[1717075552120,6.78,168.62,168.61,62.1944]
[1717075552328,2.1935,168.68,168.63,60.0]
[1717075552622,2.1935,168.68,168.61,62.1942]
[1717075552623,6.78,168.64,168.61,62.1942]
[1717075552835,2.1935,168.68,168.63,60.0]
[1717075553041,6.78,168.64,168.63,60.0]
[1717075553204,2.1935,168.68,168.63,60.0]
[1717075553524,6.78,168.64,168.63,60.0]
[1717075553847,2.1934,168.69,168.65,60.0]
[1717075554027,6.78,168.66,168.65,60.0]
[1717075554230,6.78,168.66,168.63,60.0]
[1717075554525,6.78,168.64,168.63,60.0]
[1717075557910,2.1933,168.69,168.63,60.0]
[1717075558231,6.78,168.64,168.63,62.1941]
[1717075558433,6.78,168.64,168.63,60.0]
[1717075558635,6.78,168.64,168.6,62.1944]
[1717075558933,6.78,168.61,168.58,60.0]
[1717075559102,2.1941,168.63,168.58,60.0]
[1717075559416,6.78,168.59,168.54,60.0]
[1717075559618,6.78,168.56,168.54,62.1952]
[1717075559915,6.78,168.56,168.54,60.0]
[1717075560119,6.78,168.55,168.53,37.8654]
[1717075560333,6.78,168.55,168.54,2.1953]
[1717075560517,6.78,168.55,168.53,97.8654]
[1717075560833,6.78,168.61,168.6,60.0]
[1717075561535,6.78,168.61,168.58,62.1948]
[1717075561708,2.1941,168.64,168.55,24.69]
[1717075561709,2.1939,168.65,168.6,60.0]
[1717075561912,6.78,168.61,168.6,60.0]
[1717075562333,2.194,168.64,168.6,60.0]
[1717075564039,20.3,168.67,168.6,60.0]
[1717075564541,2.194,168.64,168.6,60.0]
[1717075564952,2.1937,168.66,168.62,60.0]
[1717075565739,2.1937,168.66,168.6,97.8644]
[1717075566253,2.1938,168.65,168.59,2.1946]
[1717075566414,11.0165,168.68,168.58,60.0]
[1717075566616,2.1939,168.65,168.59,2.1946]
[1717075567040,2.194,168.64,168.59,2.1946]
[1717075567216,11.0165,168.68,168.58,62.1947]
[1717075567425,2.1941,168.63,168.57,2.1948]
[1717075567632,2.1941,168.63,168.58,62.1947]
[1717075567835,2.1939,168.65,168.6,60.0]
[1717075568049,8.2906,168.65,168.6,60.0]
[1717075568343,2.194,168.64,168.58,62.1947]
[1717075568535,2.194,168.64,168.21,28.51771897]
[1717075568536,4.3886,168.62,168.51,60.0]
[1717075568736,2.1947,168.59,168.53,60.0]
[1717075568933,2.1945,168.6,168.55,60.0]
[1717075569144,2.1944,168.61,168.55,60.0]
[1717075569339,2.1944,168.61,168.55,62.195]
[1717075569537,2.1945,168.6,168.55,2.195]
[1717075569737,8.4153,168.59,168.53,2.1954]
[1717075570144,8.4154,168.58,168.52,2.1955]
[1717075570334,6.2206,168.58,168.53,2.1954]
[1717075570650,8.4154,168.58,168.53,60.0]
[1717075571244,4.3886,168.62,168.55,60.0]
[1717075571424,4.3886,168.62,168.53,62.1954]
[1717075571425,2.1947,168.59,168.53,62.1954]
[1717075571840,2.1947,168.59,168.55,60.0]
[1717075572048,26.5206,168.63,168.55,60.0]
[1717075572233,2.1943,168.62,168.57,60.0]
[1717075572639,2.1943,168.62,168.57,62.1949]
[1717075573153,2.1943,168.62,168.57,60.0]
[1717075573341,17.2431,168.68,168.59,60.0]
[1717075573542,17.2431,168.68,168.59,62.1945]
[1717075573750,17.2431,168.68,168.59,60.0]
[1717075573751,2.1941,168.64,168.59,60.0]
[1717075573949,2.1941,168.64,168.59,62.1946]
[1717075574556,17.2431,168.68,168.59,62.1946]
[1717075574557,2.1939,168.65,168.61,60.0]
[1717075577061,2.194,168.64,168.61,60.0]
[1717075577555,2.1938,168.66,168.61,60.0]
[1717075577761,2.1938,168.66,168.61,62.1943]
[1717075578066,2.1938,168.66,168.61,60.0]
[1717075578562,20.3,168.69,168.63,60.0]
[1717075578563,2.1936,168.67,168.63,60.0]
[1717075579963,2.1937,168.66,168.61,97.8643]
[1717075580178,2.1936,168.67,168.61,97.8643]
[1717075580479,2.1935,168.68,168.63,62.194]
[1717075580783,2.1933,168.7,168.65,60.0]
[1717075581086,2.1934,168.69,168.65,60.0]
[1717075581249,2.1935,168.68,168.63,60.0]
[1717075581457,2.1935,168.68,168.63,95.67]
[1717075581754,2.1934,168.69,168.65,60.0]
[1717075582060,2.1932,168.7,168.65,60.0]
[1717075582973,6.1454,168.72,168.65,60.0]
[1717075582974,2.1934,168.69,168.65,60.0]
[1717075584980,2.1932,168.7,168.65,60.0]
[1717075585478,2.1934,168.69,168.65,60.0]
[1717075585849,2.1934,168.69,168.66,60.0]
[1717075586050,2.1932,168.7,168.66,60.0]
[1717075588779,2.1933,168.69,168.66,60.0]
[1717075589071,2.1932,168.7,168.64,62.1939]
[1717075590350,6.76,168.67,168.64,62.1939]
[1717075590680,2.1932,168.7,168.65,2.1938]
[1717075590865,6.76,168.67,168.65,2.1938]
[1717075591259,6.76,168.67,168.64,62.1939]
[1717075592485,6.76,168.66,168.64,62.1939]
[1717075593179,6.76,168.67,168.64,62.1939]
[1717075593675,6.76,168.66,168.64,62.1939]
[1717075593873,6.76,168.67,168.64,62.1939]
[1717075594866,6.76,168.68,168.66,60.0]
[1717075595060,6.76,168.67,168.66,60.0]
[1717075599387,6.76,168.67,168.64,60.0]
[1717075600248,6.76,168.67,168.64,62.194]
[1717075600882,6.76,168.66,168.64,62.194]
[1717075602891,6.76,168.66,168.65,2.1938]
[1717075603061,6.76,168.66,168.64,62.1939]
[1717075603563,6.76,168.66,168.65,2.1938]
[1717075603807,6.76,168.67,168.65,2.1938]
[1717075603970,6.76,168.67,168.66,60.0]
[1717075608473,2.1933,168.7,168.66,60.0]
[1717075608993,2.1939,168.65,168.6,2.1944]
[1717075609176,6.76,168.61,168.6,62.1945]
[1717075609492,6.76,168.61,168.57,26.6803]
[1717075609493,6.76,168.61,168.58,62.1946]
[1717075609678,6.76,168.59,168.58,60.0]
[1717075610189,6.76,168.59,168.58,62.1948]
[1717075611182,6.76,168.59,168.58,2.1948]
[1717075611790,6.76,168.59,168.58,62.1948]
[1717075612369,6.76,168.59,168.58,2.1948]
[1717075612962,6.76,168.59,168.57,2.1948]
[1717075613163,2.1944,168.61,168.54,64.3905]
[1717075613383,2.1944,168.61,168.55,2.1951]
[1717075613983,2.1944,168.61,168.56,62.1949]
[1717075614573,2.1943,168.62,168.56,62.1949]
[1717075614785,2.1944,168.61,168.56,62.1949]
[1717075615187,2.1944,168.61,168.56,2.1949]
[1717075618770,13.2977,168.64,168.54,60.0]
[1717075618998,13.2977,168.64,168.53,2.1953]
[1717075618999,6.76,168.55,168.53,2.1953]
[1717075619301,4.3886,168.62,168.54,2.1952]
[1717075619525,6.76,168.55,168.54,2.1952]
[1717075620294,2.1945,168.6,168.56,60.0]
[1717075620499,2.1943,168.62,168.57,2.1949]
[1717075620734,6.76,168.6,168.57,2.1949]
[1717075621235,6.76,168.58,168.56,2.1949]
[1717075621379,6.76,168.57,168.55,2.1951]
[1717075621618,6.76,168.57,168.56,2.195]
[1717075621873,6.76,168.58,168.57,2.1949]
[1717075622693,6.76,168.58,168.56,62.195]
[1717075622896,6.76,168.58,168.57,2.1949]
[1717075623779,6.76,168.59,168.57,2.1949]
[1717075624904,13.52,168.58,168.48,60.0]
[1717075625117,13.52,168.58,168.49,2.1958]
[1717075625118,6.76,168.56,168.49,2.1958]
[1717075625279,6.76,168.5,168.49,2.1958]
[1717075625484,2.1953,168.54,168.49,2.1958]
[1717075625705,6.76,168.56,168.46,13.1776]
[1717075625706,6.76,168.56,168.46,64.3926]
[1717075626009,6.76,168.56,168.48,60.0]
[1717075626311,6.76,168.51,168.5,2.1957]
[1717075627492,2.1953,168.54,168.49,2.1959]
[1717075627979,6.5851,168.57,168.46,60.0]
[1717075628297,8.39173466,168.6,168.42,104.4572]
[1717075628298,2.1959,168.5,168.42,104.4572]
[1717075628496,6.76,168.46,168.45,2.1964]
[1717075629601,8.781,168.55,168.48,60.0]
[1717075629897,6.76,168.5,168.48,60.0]
[1717075630481,2.1956,168.52,168.48,60.0]
[1717075630685,2.1954,168.54,168.5,60.0]
[1717075630899,2.1955,168.53,168.48,2.1961]
[1717075632810,2.1955,168.53,168.48,2.196]
[1717075633177,2.1959,168.5,168.45,2.1964]
[1717075633301,2.1961,168.48,168.42,2.1967]
[1717075633504,2.1962,168.47,168.41,60.0]
[1717075633704,2.1964,168.46,168.41,2.1969]
[1717075633905,2.1964,168.46,168.41,62.1969]
[1717075634592,2.1963,168.46,168.41,2.1969]
[1717075635584,2.1964,168.45,168.4,2.1971]
[1717075636318,2.1963,168.46,168.41,62.1969]
[1717075636713,2.1963,168.46,168.41,2.1969]
[1717075637293,2.1963,168.46,168.4,2.197]
[1717075637503,4.3924,168.47,168.39,2.1972]
[1717075637712,2.1967,168.43,168.38,2.1973]
[1717075637902,6.3888,168.4,168.33,60.0]
[1717075638107,8.5859,168.4,168.35,60.0]
[1717075638308,2.1971,168.4,168.35,62.1977]
[1717075638612,12.9789,168.44,168.35,62.1977]
[1717075638613,2.1969,168.42,168.37,62.1975]
[1717075639111,2.197,168.41,168.37,60.0]
[1717075639805,10.7822,168.44,168.35,2.1977]
[1717075640007,10.7822,168.44,168.36,60.0]
[1717075640190,2.1971,168.4,168.34,62.1978]
[1717075640400,2.1971,168.4,168.35,2.1977]
[1717075642115,2.1976,168.37,168.32,2.1981]
[1717075642503,2.1976,168.37,168.31,62.1982]
[1717075642812,2.1976,168.37,168.32,2.1981]
[1717075643013,2.1977,168.36,168.31,60.0]
[1717075643421,2.1978,168.35,168.31,60.0]
[1717075643792,2.1979,168.34,168.31,60.0]
[1717075643940,2.1978,168.35,168.31,60.0]
[1717075644498,2.1979,168.34,168.31,60.0]
[1717075647104,2.198,168.33,168.31,60.0]
[1717075647435,4.3954,168.36,168.27,2.1987]
[1717075647596,2.1984,168.31,168.26,35.67]
[1717075647803,2.1984,168.3,168.26,35.67]
[1717075648020,2.1983,168.31,168.26,37.8689]
[1717075648504,2.1983,168.31,168.26,2.1989]
[1717075649295,2.1983,168.31,168.24,95.67]